[Event "Early-Titled-Tuesday-Blitz-August-29-2023"]
[Site "Chess.com"]
[Date "2023.08.29"]
[Round "9"]
[White "Balla_Tamas"]
[Black "enriquebutti"]
[Result "0-1"]
[WhiteElo "2424"]
[BlackElo "2273"]
[TimeControl "180+1"]
[EndTime "9:43:59 PDT"]
[Termination "enriquebutti won on time"]

1. e4 {[%clk 0:03:00.9]} 1... c5 {[%clk 0:02:58.5]} 2. c3 {[%clk 0:03:00.9]}
2... e6 {[%clk 0:02:56.6]} 3. d4 {[%clk 0:03:01.3]} 3... d5 {[%clk 0:02:56.3]}
4. exd5 {[%clk 0:02:59.7]} 4... exd5 {[%clk 0:02:55.8]} 5. Nf3 {[%clk
0:03:00.4]} 5... Nc6 {[%clk 0:02:55.4]} 6. Bb5 {[%clk 0:03:01]} 6... Bd6 {[%clk
0:02:54.5]} 7. dxc5 {[%clk 0:03:01.3]} 7... Bxc5 {[%clk 0:02:54.3]} 8. O-O
{[%clk 0:03:01.8]} 8... Ne7 {[%clk 0:02:53.9]} 9. Nbd2 {[%clk 0:03:01.1]} 9...
O-O {[%clk 0:02:53.2]} 10. Nb3 {[%clk 0:03:01.6]} 10... Bb6 {[%clk 0:02:53]} 11.
h3 {[%clk 0:02:59.9]} 11... Nf5 {[%clk 0:02:47]} 12. Bf4 {[%clk 0:02:49.1]}
12... Be6 {[%clk 0:02:36]} 13. Bd3 {[%clk 0:02:39.8]} 13... Nh4 {[%clk
0:02:33.4]} 14. Bg3 {[%clk 0:02:28.6]} 14... Nxf3+ {[%clk 0:02:32.5]} 15. Qxf3
{[%clk 0:02:29.5]} 15... a5 {[%clk 0:02:25.2]} 16. Rad1 {[%clk 0:02:28]} 16...
a4 {[%clk 0:02:24.6]} 17. Nd4 {[%clk 0:02:06.4]} 17... Bxd4 {[%clk 0:02:23.7]}
18. cxd4 {[%clk 0:02:07.3]} 18... Qb6 {[%clk 0:02:23.9]} 19. Qh5 {[%clk
0:01:59.1]} 19... g6 {[%clk 0:02:18.2]} 20. Qh6 {[%clk 0:01:58.7]} 20... Qxb2
{[%clk 0:01:53.6]} 21. Bb1 {[%clk 0:01:32.6]} 21... Qb4 {[%clk 0:01:41.5]} 22.
Rfe1 {[%clk 0:01:26]} 22... Rfe8 {[%clk 0:01:40.3]} 23. Bh4 {[%clk 0:01:19.8]}
23... Qf8 {[%clk 0:01:38.5]} 24. Qf4 {[%clk 0:01:16.5]} 24... f5 {[%clk
0:01:24.8]} 25. Re3 {[%clk 0:01:04.1]} 25... Bd7 {[%clk 0:01:17.6]} 26. Rde1
{[%clk 0:01:03.7]} 26... Rxe3 {[%clk 0:01:16.6]} 27. Rxe3 {[%clk 0:01:01.9]}
27... Re8 {[%clk 0:01:15.7]} 28. Rxe8 {[%clk 0:00:44.3]} 28... Qxe8 {[%clk
0:01:13]} 29. Bd3 {[%clk 0:00:42.4]} 29... Qe6 {[%clk 0:01:02.1]} 30. Qc7 {[%clk
0:00:37.4]} 30... Bc8 {[%clk 0:00:49.1]} 31. Bg5 {[%clk 0:00:33.6]} 31... Qd7
{[%clk 0:00:41.3]} 32. Qf4 {[%clk 0:00:29.6]} 32... Nd8 {[%clk 0:00:35.9]} 33.
Bh6 {[%clk 0:00:23.3]} 33... Ne6 {[%clk 0:00:35.2]} 34. Qe5 {[%clk 0:00:20.9]}
34... Qc7 {[%clk 0:00:32.9]} 35. Qf6 {[%clk 0:00:20.2]} 35... Qf7 {[%clk
0:00:32.1]} 36. Qh4 {[%clk 0:00:20.3]} 36... f4 {[%clk 0:00:29.3]} 37. Bb5
{[%clk 0:00:19.6]} 37... Bd7 {[%clk 0:00:27.8]} 38. Bxd7 {[%clk 0:00:15.7]}
38... Qxd7 {[%clk 0:00:27.1]} 39. Qf6 {[%clk 0:00:16.2]} 39... Qf7 {[%clk
0:00:26.4]} 40. Qe5 {[%clk 0:00:16.4]} 40... Qe7 {[%clk 0:00:22.8]} 41. Qxd5
{[%clk 0:00:14.5]} 41... Kf7 {[%clk 0:00:22.4]} 42. Qe5 {[%clk 0:00:12.5]} 42...
Qf6 {[%clk 0:00:21.2]} 43. Qb8 {[%clk 0:00:08.9]} 43... Qxd4 {[%clk 0:00:20]}
44. Qxb7+ {[%clk 0:00:09.1]} 44... Kf6 {[%clk 0:00:19.6]} 45. Qb1 {[%clk
0:00:07.8]} 45... Qd2 {[%clk 0:00:16.6]} 46. Qb7 {[%clk 0:00:06.9]} 46... Qe2
{[%clk 0:00:14.8]} 47. Qxh7 {[%clk 0:00:04.4]} 47... Qe1+ {[%clk 0:00:14]} 48.
Kh2 {[%clk 0:00:04.2]} 48... Qxf2 {[%clk 0:00:13.7]} 49. Qh8+ {[%clk 0:00:04.7]}
49... Kf5 {[%clk 0:00:13]} 50. h4 {[%clk 0:00:01.2]} 50... f3 {[%clk 0:00:12.2]}
0-1

[Event "Early-Titled-Tuesday-Blitz-August-29-2023"]
[Site "Chess.com"]
[Date "2023.08.29"]
[Round "9"]
[White "Jojo_898"]
[Black "nassimzrikem"]
[Result "0-1"]
[WhiteElo "2383"]
[BlackElo "2111"]
[TimeControl "180+1"]
[EndTime "9:44:00 PDT"]
[Termination "nassimzrikem won by resignation"]

1. e4 {[%clk 0:02:59.4]} 1... e5 {[%clk 0:02:59.7]} 2. Nf3 {[%clk 0:02:59.1]}
2... Nc6 {[%clk 0:03:00.3]} 3. Bc4 {[%clk 0:02:58.5]} 3... Nf6 {[%clk
0:03:00.1]} 4. O-O {[%clk 0:02:57.1]} 4... Nxe4 {[%clk 0:02:59.7]} 5. d4 {[%clk
0:02:48]} 5... exd4 {[%clk 0:03:00.6]} 6. Re1 {[%clk 0:02:45.5]} 6... d5 {[%clk
0:03:01.1]} 7. Bxd5 {[%clk 0:02:44.8]} 7... Qxd5 {[%clk 0:03:02]} 8. Nc3 {[%clk
0:02:44.9]} 8... Qd7 {[%clk 0:03:02.7]} 9. Nxe4 {[%clk 0:02:44.4]} 9... Be7
{[%clk 0:03:03.4]} 10. a3 {[%clk 0:02:22.3]} 10... O-O {[%clk 0:02:58]} 11. Qd3
{[%clk 0:02:21.9]} 11... f5 {[%clk 0:02:50.2]} 12. Qc4+ {[%clk 0:02:10.1]} 12...
Kh8 {[%clk 0:02:47.6]} 13. Neg5 {[%clk 0:02:06.1]} 13... Bf6 {[%clk 0:02:47.5]}
14. Bf4 {[%clk 0:01:59.5]} 14... h6 {[%clk 0:02:12.8]} 15. Ne6 {[%clk
0:01:58.5]} 15... Qf7 {[%clk 0:02:13.2]} 16. Qb3 {[%clk 0:01:13.4]} 16... Bxe6
{[%clk 0:02:08.5]} 17. Qxe6 {[%clk 0:01:01.6]} 17... Qxe6 {[%clk 0:02:05.8]} 18.
Rxe6 {[%clk 0:01:02.5]} 18... Kg8 {[%clk 0:01:42.3]} 19. Bxc7 {[%clk 0:01:00.6]}
19... Kf7 {[%clk 0:01:43]} 20. Rd6 {[%clk 0:00:44.4]} 20... Rac8 {[%clk
0:01:29.4]} 21. Rd7+ {[%clk 0:00:38.8]} 21... Ke6 {[%clk 0:01:29.1]} 22. Rd6+
{[%clk 0:00:38.9]} 22... Ke7 {[%clk 0:01:29]} 23. Re1+ {[%clk 0:00:37.8]} 23...
Ne5 {[%clk 0:01:07.6]} 24. Nxe5 {[%clk 0:00:32.3]} 24... Rxc7 {[%clk 0:01:07.5]}
25. Rxd4 {[%clk 0:00:21.4]} 25... Rfc8 {[%clk 0:00:33.7]} 26. Rd2 {[%clk
0:00:15]} 26... Kf8 {[%clk 0:00:11.5]} 27. c3 {[%clk 0:00:14.1]} 27... Kg8
{[%clk 0:00:11.5]} 28. Nf3 {[%clk 0:00:13.7]} 28... g5 {[%clk 0:00:09.4]} 29. h3
{[%clk 0:00:13.6]} 29... g4 {[%clk 0:00:08.8]} 30. h4 {[%clk 0:00:13.9]} 30...
gxf3 {[%clk 0:00:07.5]} 31. gxf3 {[%clk 0:00:14.8]} 31... Bxh4 {[%clk
0:00:07.8]} 32. Kg2 {[%clk 0:00:14.9]} 32... Bg5 {[%clk 0:00:08.3]} 33. Rde2
{[%clk 0:00:15]} 33... Kf7 {[%clk 0:00:08.1]} 34. Rd1 {[%clk 0:00:12.9]} 34...
Re7 {[%clk 0:00:08.4]} 35. Rc2 {[%clk 0:00:10.9]} 35... Rce8 {[%clk 0:00:08.6]}
36. Rd4 {[%clk 0:00:11.3]} 36... Re2 {[%clk 0:00:07.2]} 37. Rxe2 {[%clk
0:00:11]} 37... Rxe2 {[%clk 0:00:07.3]} 38. f4 {[%clk 0:00:11.2]} 38... Be7
{[%clk 0:00:06.6]} 39. b3 {[%clk 0:00:10]} 39... Rc2 {[%clk 0:00:06]} 40. Rc4
{[%clk 0:00:09.6]} 40... Bxa3 {[%clk 0:00:04.1]} 41. Rc7+ {[%clk 0:00:09.8]}
41... Be7 {[%clk 0:00:04.7]} 42. Rxb7 {[%clk 0:00:10.2]} 42... Rxc3 {[%clk
0:00:05]} 43. Rxa7 {[%clk 0:00:10.4]} 43... Rxb3 {[%clk 0:00:05.7]} 44. Ra6
{[%clk 0:00:11.2]} 44... Rb4 {[%clk 0:00:05.8]} 45. Rxh6 {[%clk 0:00:11]} 45...
Rxf4 {[%clk 0:00:06.5]} 46. Rh7+ {[%clk 0:00:11.7]} 46... Ke6 {[%clk 0:00:06.6]}
47. Rh6+ {[%clk 0:00:12.2]} 47... Ke5 {[%clk 0:00:07.2]} 48. Ra6 {[%clk
0:00:12.1]} 48... Bc5 {[%clk 0:00:07.8]} 49. Ra5 {[%clk 0:00:12.1]} 49... Rxf2+
{[%clk 0:00:06.7]} 50. Kg3 {[%clk 0:00:11.7]} 50... Rc2 {[%clk 0:00:07.1]} 51.
Kf3 {[%clk 0:00:11.4]} 51... Rc3+ {[%clk 0:00:06.7]} 52. Ke2 {[%clk 0:00:11]}
52... Ke4 {[%clk 0:00:07.6]} 53. Kd2 {[%clk 0:00:11.5]} 53... Bd4 {[%clk
0:00:08.4]} 54. Ra4 {[%clk 0:00:11.6]} 54... Rh3 {[%clk 0:00:08.8]} 55. Ra8
{[%clk 0:00:11.7]} 55... f4 {[%clk 0:00:09]} 56. Ke2 {[%clk 0:00:12.3]} 56...
Rh2+ {[%clk 0:00:08.7]} 57. Ke1 {[%clk 0:00:12.3]} 57... Kf3 {[%clk 0:00:09.3]}
58. Ra3+ {[%clk 0:00:11.6]} 58... Be3 {[%clk 0:00:10.2]} 0-1

[Event "Early-Titled-Tuesday-Blitz-August-29-2023"]
[Site "Chess.com"]
[Date "2023.08.29"]
[Round "9"]
[White "assezde36"]
[Black "santosalberto1987"]
[Result "1-0"]
[WhiteElo "2797"]
[BlackElo "2550"]
[TimeControl "180+1"]
[EndTime "9:44:01 PDT"]
[Termination "assezde36 won by resignation"]

1. e4 {[%clk 0:02:57.9]} 1... e6 {[%clk 0:02:39.9]} 2. d4 {[%clk 0:02:55.5]}
2... d5 {[%clk 0:02:39.9]} 3. Nd2 {[%clk 0:02:56]} 3... c5 {[%clk 0:02:40]} 4.
Ngf3 {[%clk 0:02:55.4]} 4... cxd4 {[%clk 0:02:40]} 5. Nxd4 {[%clk 0:02:56.3]}
5... Nf6 {[%clk 0:02:40.1]} 6. exd5 {[%clk 0:02:56.3]} 6... Nxd5 {[%clk
0:02:41]} 7. N2f3 {[%clk 0:02:55.8]} 7... Bb4+ {[%clk 0:02:40]} 8. Bd2 {[%clk
0:02:47.9]} 8... O-O {[%clk 0:02:40.3]} 9. c3 {[%clk 0:02:45.7]} 9... Be7 {[%clk
0:02:40.1]} 10. Bd3 {[%clk 0:02:45.7]} 10... a6 {[%clk 0:02:36.7]} 11. Qc2
{[%clk 0:02:45.7]} 11... h6 {[%clk 0:02:33.6]} 12. O-O-O {[%clk 0:02:44.5]}
12... b5 {[%clk 0:02:33.1]} 13. Kb1 {[%clk 0:02:44.5]} 13... Bb7 {[%clk
0:02:33.1]} 14. Rhe1 {[%clk 0:02:44.2]} 14... Nd7 {[%clk 0:02:31.3]} 15. g4
{[%clk 0:02:26.6]} 15... Rc8 {[%clk 0:02:30.8]} 16. Qc1 {[%clk 0:01:50]} 16...
Nb4 {[%clk 0:01:58.1]} 17. Bf1 {[%clk 0:01:50.2]} 17... Bd5 {[%clk 0:01:57.7]}
18. a3 {[%clk 0:01:41.4]} 18... Nc6 {[%clk 0:01:53.1]} 19. Nxc6 {[%clk
0:01:32.4]} 19... Bxc6 {[%clk 0:01:53]} 20. Nd4 {[%clk 0:01:29.4]} 20... Bd5
{[%clk 0:01:48.2]} 21. Bf4 {[%clk 0:01:14.6]} 21... Bf6 {[%clk 0:01:44]} 22. Nf5
{[%clk 0:01:08.5]} 22... Nb6 {[%clk 0:01:36.6]} 23. Ne3 {[%clk 0:01:02.6]} 23...
Bg5 {[%clk 0:01:18.1]} 24. Nxd5 {[%clk 0:01:02.2]} 24... Nxd5 {[%clk 0:01:18.3]}
25. Be3 {[%clk 0:00:54.2]} 25... Qf6 {[%clk 0:00:56.6]} 26. Bg2 {[%clk
0:00:50.9]} 26... Nxe3 {[%clk 0:00:54.7]} 27. fxe3 {[%clk 0:00:50.8]} 27... a5
{[%clk 0:00:52.5]} 28. Qd2 {[%clk 0:00:45.3]} 28... b4 {[%clk 0:00:51.1]} 29.
cxb4 {[%clk 0:00:44.6]} 29... axb4 {[%clk 0:00:51.5]} 30. Qxb4 {[%clk
0:00:44.5]} 30... Rb8 {[%clk 0:00:50.6]} 31. Qd4 {[%clk 0:00:44.4]} 31... Qe7
{[%clk 0:00:49.6]} 32. Qa4 {[%clk 0:00:22.9]} 32... Bf6 {[%clk 0:00:45.9]} 33.
Re2 {[%clk 0:00:21.8]} 33... Rb6 {[%clk 0:00:28]} 34. h3 {[%clk 0:00:20]} 34...
Rfb8 {[%clk 0:00:27.4]} 35. Rdd2 {[%clk 0:00:20.5]} 35... Qc5 {[%clk 0:00:20.4]}
36. Rc2 {[%clk 0:00:20.1]} 36... Qd6 {[%clk 0:00:20.5]} 37. Red2 {[%clk
0:00:18.6]} 37... Qg3 {[%clk 0:00:20.5]} 38. Qe4 {[%clk 0:00:18.6]} 38... Qe1+
{[%clk 0:00:17.1]} 39. Ka2 {[%clk 0:00:18.9]} 39... Qg3 {[%clk 0:00:13.8]} 40.
Qf4 {[%clk 0:00:14.6]} 40... Qe1 {[%clk 0:00:13]} 41. Qf2 {[%clk 0:00:13.7]}
41... Qxf2 {[%clk 0:00:12]} 42. Rxf2 {[%clk 0:00:14.6]} 42... Be5 {[%clk
0:00:12.3]} 43. b4 {[%clk 0:00:14.7]} 43... Ra6 {[%clk 0:00:11.6]} 44. Kb3
{[%clk 0:00:14.4]} 44... Rab6 {[%clk 0:00:10.4]} 45. Rc4 {[%clk 0:00:13.9]}
45... g6 {[%clk 0:00:09.6]} 46. Rfc2 {[%clk 0:00:12.6]} 46... Kg7 {[%clk
0:00:09.4]} 47. a4 {[%clk 0:00:12.6]} 47... Bd6 {[%clk 0:00:08.9]} 48. b5 {[%clk
0:00:12.7]} 48... f5 {[%clk 0:00:07.3]} 49. Rc6 {[%clk 0:00:11.9]} 49... Kf6
{[%clk 0:00:06.7]} 50. Rxb6 {[%clk 0:00:10]} 50... Rxb6 {[%clk 0:00:07.6]} 51.
Bc6 {[%clk 0:00:10.7]} 51... Ke7 {[%clk 0:00:07.2]} 52. a5 {[%clk 0:00:10.7]}
52... Rb8 {[%clk 0:00:07.8]} 53. a6 {[%clk 0:00:07.8]} 53... Bc7 {[%clk
0:00:07.6]} 54. a7 {[%clk 0:00:07.4]} 1-0

[Event "Early-Titled-Tuesday-Blitz-August-29-2023"]
[Site "Chess.com"]
[Date "2023.08.29"]
[Round "9"]
[White "MusicCityMaster"]
[Black "Goffredo_Fofi"]
[Result "1/2-1/2"]
[WhiteElo "2437"]
[BlackElo "2549"]
[TimeControl "180+1"]
[EndTime "9:44:01 PDT"]
[Termination "Game drawn - insufficient material"]

1. e4 {[%clk 0:03:00.9]} 1... g6 {[%clk 0:03:00.2]} 2. h4 {[%clk 0:02:59.7]}
2... d5 {[%clk 0:02:58.7]} 3. exd5 {[%clk 0:02:54.1]} 3... Qxd5 {[%clk
0:02:59.6]} 4. Nc3 {[%clk 0:02:53.9]} 4... Qa5 {[%clk 0:02:59.7]} 5. Bc4 {[%clk
0:02:52.8]} 5... Nf6 {[%clk 0:02:58.3]} 6. Qe2 {[%clk 0:02:46]} 6... Nc6 {[%clk
0:02:53.7]} 7. Bb5 {[%clk 0:02:12.9]} 7... Bg4 {[%clk 0:02:29.8]} 8. f3 {[%clk
0:02:11.6]} 8... Bd7 {[%clk 0:02:29.4]} 9. Nh3 {[%clk 0:01:56.3]} 9... O-O-O
{[%clk 0:02:27.3]} 10. d3 {[%clk 0:01:44.1]} 10... Nd5 {[%clk 0:02:05.8]} 11.
Bd2 {[%clk 0:01:42.8]} 11... Nxc3 {[%clk 0:01:56.1]} 12. Bxc6 {[%clk 0:01:28]}
12... Nxe2 {[%clk 0:01:46.8]} 13. Bxd7+ {[%clk 0:01:28.2]} 13... Rxd7 {[%clk
0:01:47]} 14. Bxa5 {[%clk 0:01:28.6]} 14... Ng3 {[%clk 0:01:47.2]} 15. Rg1
{[%clk 0:01:25]} 15... Bg7 {[%clk 0:01:43.7]} 16. Bc3 {[%clk 0:01:17.6]} 16...
Bxc3+ {[%clk 0:01:41.5]} 17. bxc3 {[%clk 0:01:18.5]} 17... e5 {[%clk 0:01:31.5]}
18. Ng5 {[%clk 0:01:18.1]} 18... f5 {[%clk 0:01:19.5]} 19. Kf2 {[%clk
0:01:15.5]} 19... Nh5 {[%clk 0:01:18.9]} 20. Rge1 {[%clk 0:01:11.1]} 20... h6
{[%clk 0:01:06.2]} 21. Ne6 {[%clk 0:01:11.2]} 21... Re8 {[%clk 0:01:04]} 22.
Rxe5 {[%clk 0:01:06.1]} 22... Rde7 {[%clk 0:01:01.5]} 23. Rae1 {[%clk
0:01:05.1]} 23... Nf4 {[%clk 0:00:56.4]} 24. Nxc7 {[%clk 0:00:51.9]} 24... Rxe5
{[%clk 0:00:57.3]} 25. Nxe8 {[%clk 0:00:51.5]} 25... Rxe1 {[%clk 0:00:55.5]} 26.
Kxe1 {[%clk 0:00:52.4]} 26... Nxg2+ {[%clk 0:00:55.3]} 27. Kf2 {[%clk
0:00:52.4]} 27... Nxh4 {[%clk 0:00:56.2]} 28. Nd6+ {[%clk 0:00:52.1]} 28... Kc7
{[%clk 0:00:51.4]} 29. Nf7 {[%clk 0:00:50.8]} 29... Kd7 {[%clk 0:00:27.1]} 30.
f4 {[%clk 0:00:36.3]} 30... Ke7 {[%clk 0:00:21.4]} 31. Nxh6 {[%clk 0:00:27.2]}
31... g5 {[%clk 0:00:11.8]} 32. fxg5 {[%clk 0:00:24.6]} 32... Ke6 {[%clk
0:00:12.7]} 33. Kg3 {[%clk 0:00:20.8]} 33... Ng6 {[%clk 0:00:12.9]} 34. d4
{[%clk 0:00:18]} 34... Kd5 {[%clk 0:00:10.1]} 35. Nxf5 {[%clk 0:00:17.8]} 35...
Kc4 {[%clk 0:00:10.5]} 36. Nh4 {[%clk 0:00:17.5]} 36... Ne7 {[%clk 0:00:10]} 37.
g6 {[%clk 0:00:18]} 37... Kxc3 {[%clk 0:00:09.8]} 38. d5 {[%clk 0:00:16.8]}
38... Nxd5 {[%clk 0:00:10]} 39. Nf5 {[%clk 0:00:14.1]} 39... Kxc2 {[%clk
0:00:04]} 40. g7 {[%clk 0:00:12.6]} 40... Nf6 {[%clk 0:00:04]} 41. Nd6 {[%clk
0:00:13.3]} 41... b6 {[%clk 0:00:02.2]} 42. Nb5 {[%clk 0:00:12.3]} 42... Kb2
{[%clk 0:00:02.4]} 43. Nxa7 {[%clk 0:00:12.3]} 43... Kxa2 {[%clk 0:00:02.9]} 44.
Nc8 {[%clk 0:00:13]} 44... b5 {[%clk 0:00:03.1]} 45. Nd6 {[%clk 0:00:13]} 45...
b4 {[%clk 0:00:03.6]} 46. Kf4 {[%clk 0:00:12.5]} 46... b3 {[%clk 0:00:04]} 47.
Nc4 {[%clk 0:00:11.2]} 47... b2 {[%clk 0:00:04.1]} 48. Nxb2 {[%clk 0:00:10.9]}
48... Kxb2 {[%clk 0:00:05]} 49. Kf5 {[%clk 0:00:09.4]} 49... Ng8 {[%clk
0:00:05.3]} 50. Kg6 {[%clk 0:00:09.6]} 50... Kc3 {[%clk 0:00:03.6]} 51. Kf7
{[%clk 0:00:08.8]} 51... Nh6+ {[%clk 0:00:04]} 52. Kg6 {[%clk 0:00:07.3]} 52...
Ng8 {[%clk 0:00:04.4]} 53. Kh7 {[%clk 0:00:08.1]} 53... Nf6+ {[%clk 0:00:04.6]}
54. Kh6 {[%clk 0:00:08.4]} 54... Kd4 {[%clk 0:00:04.1]} 55. Kg5 {[%clk
0:00:08.7]} 55... Ng8 {[%clk 0:00:04.3]} 56. Kf5 {[%clk 0:00:08.6]} 56... Kd5
{[%clk 0:00:04.6]} 57. Kg6 {[%clk 0:00:08.4]} 57... Ke6 {[%clk 0:00:05]} 58. Kh7
{[%clk 0:00:08.7]} 58... Nf6+ {[%clk 0:00:05.4]} 59. Kh8 {[%clk 0:00:08.7]}
59... Kf7 {[%clk 0:00:05.3]} 60. g8=Q+ {[%clk 0:00:08.1]} 60... Nxg8 {[%clk
0:00:05.4]} 1/2-1/2

[Event "Early-Titled-Tuesday-Blitz-August-29-2023"]
[Site "Chess.com"]
[Date "2023.08.29"]
[Round "9"]
[White "MathiasWomacka"]
[Black "Kubas1010"]
[Result "0-1"]
[WhiteElo "2471"]
[BlackElo "2650"]
[TimeControl "180+1"]
[EndTime "9:44:06 PDT"]
[Termination "Kubas1010 won on time"]

1. e4 {[%clk 0:02:35.6]} 1... d6 {[%clk 0:02:55.1]} 2. d4 {[%clk 0:02:34.7]}
2... Nf6 {[%clk 0:02:55.3]} 3. Nc3 {[%clk 0:02:35.2]} 3... e5 {[%clk 0:02:55.5]}
4. Nf3 {[%clk 0:02:34.3]} 4... Nbd7 {[%clk 0:02:55.3]} 5. Bc4 {[%clk 0:02:34.9]}
5... Be7 {[%clk 0:02:55.5]} 6. O-O {[%clk 0:02:35]} 6... O-O {[%clk 0:02:55.2]}
7. Re1 {[%clk 0:02:35.7]} 7... c6 {[%clk 0:02:55.5]} 8. a4 {[%clk 0:02:36]} 8...
a5 {[%clk 0:02:54.7]} 9. h3 {[%clk 0:02:34.9]} 9... h6 {[%clk 0:02:54.7]} 10.
Be3 {[%clk 0:02:34.1]} 10... Qc7 {[%clk 0:02:54.7]} 11. Ba2 {[%clk 0:02:23.6]}
11... Re8 {[%clk 0:02:48.4]} 12. Nh4 {[%clk 0:02:22.4]} 12... Nf8 {[%clk
0:02:47.4]} 13. Qf3 {[%clk 0:02:20.1]} 13... Be6 {[%clk 0:02:31]} 14. Nf5 {[%clk
0:02:05.1]} 14... Bxf5 {[%clk 0:02:23.3]} 15. Qxf5 {[%clk 0:02:02.9]} 15... Qc8
{[%clk 0:02:16.1]} 16. Qf3 {[%clk 0:01:58.7]} 16... Ne6 {[%clk 0:02:14.5]} 17.
dxe5 {[%clk 0:01:54.6]} 17... dxe5 {[%clk 0:02:13.9]} 18. Rad1 {[%clk
0:01:54.3]} 18... Ng5 {[%clk 0:02:04.9]} 19. Qe2 {[%clk 0:01:47.4]} 19... Bb4
{[%clk 0:01:58.9]} 20. Qc4 {[%clk 0:01:35]} 20... Qe6 {[%clk 0:01:36]} 21. Bxg5
{[%clk 0:00:58.2]} 21... Qxc4 {[%clk 0:01:30.8]} 22. Bxc4 {[%clk 0:00:59.1]}
22... hxg5 {[%clk 0:01:27.2]} 23. Re3 {[%clk 0:00:56.4]} 23... Bxc3 {[%clk
0:01:09.6]} 24. bxc3 {[%clk 0:00:51.5]} 24... Kf8 {[%clk 0:01:09]} 25. Rf3
{[%clk 0:00:35.7]} 25... Re7 {[%clk 0:01:02.8]} 26. Re1 {[%clk 0:00:20]} 26...
Rd8 {[%clk 0:00:57.9]} 27. Rf5 {[%clk 0:00:19.8]} 27... Nh7 {[%clk 0:00:57]} 28.
Kh2 {[%clk 0:00:15.7]} 28... g6 {[%clk 0:00:53]} 29. Rf3 {[%clk 0:00:15.6]}
29... Kg7 {[%clk 0:00:52.8]} 30. Rd3 {[%clk 0:00:15.4]} 30... Red7 {[%clk
0:00:51.6]} 31. Rb1 {[%clk 0:00:15.3]} 31... Nf6 {[%clk 0:00:20.3]} 32. Rxb7
{[%clk 0:00:12.8]} 32... Rxb7 {[%clk 0:00:20.6]} 33. Rxd8 {[%clk 0:00:12.7]}
33... Nxe4 {[%clk 0:00:21.5]} 34. f3 {[%clk 0:00:11.7]} 34... Nxc3 {[%clk
0:00:21.6]} 35. Re8 {[%clk 0:00:10.6]} 35... Kf6 {[%clk 0:00:18.9]} 36. Ra8
{[%clk 0:00:09.1]} 36... Nxa4 {[%clk 0:00:17.1]} 37. Rxa5 {[%clk 0:00:09.1]}
37... Nb6 {[%clk 0:00:16.1]} 38. Bb3 {[%clk 0:00:08.2]} 38... Nd7 {[%clk
0:00:12.3]} 39. Ra6 {[%clk 0:00:07.9]} 39... Rb6 {[%clk 0:00:12.5]} 40. Ra7
{[%clk 0:00:07.2]} 40... Ke7 {[%clk 0:00:12.7]} 41. Bxf7 {[%clk 0:00:06.9]}
41... c5 {[%clk 0:00:12.9]} 42. Bxg6 {[%clk 0:00:06.8]} 42... Rxg6 {[%clk
0:00:12.6]} 43. Kg3 {[%clk 0:00:05.7]} 43... Rd6 {[%clk 0:00:09.4]} 44. Kg4
{[%clk 0:00:05.6]} 44... Rd2 {[%clk 0:00:09.7]} 45. g3 {[%clk 0:00:05.2]} 45...
Rxc2 {[%clk 0:00:08.8]} 46. Kxg5 {[%clk 0:00:05.6]} 46... c4 {[%clk 0:00:09.2]}
47. h4 {[%clk 0:00:05.1]} 47... c3 {[%clk 0:00:07.2]} 48. h5 {[%clk 0:00:05.4]}
48... Rg2 {[%clk 0:00:07.3]} 49. g4 {[%clk 0:00:03.9]} 49... c2 {[%clk
0:00:07.7]} 50. Rc7 {[%clk 0:00:04]} 50... Kd6 {[%clk 0:00:07.1]} 51. Rc3 {[%clk
0:00:04.6]} 51... Nb6 {[%clk 0:00:06.9]} 52. h6 {[%clk 0:00:04.9]} 52... Nd5
{[%clk 0:00:07.3]} 53. Rc8 {[%clk 0:00:04.8]} 53... Nf4 {[%clk 0:00:07.2]} 54.
h7 {[%clk 0:00:04.1]} 54... Ne6+ {[%clk 0:00:06.8]} 55. Kf6 {[%clk 0:00:03.2]}
55... Rh2 {[%clk 0:00:06.1]} 56. Rxc2 {[%clk 0:00:02.9]} 56... Rh6+ {[%clk
0:00:04.9]} 0-1